fUSD/lending_fUSD_20260217
["ID","MTS","AMOUNT","RATE_DAILY","PERIOD"]
[405845005,1771356656756,-857.65528936,0.00016008,2]
[405845006,1771356656766,-2406.5,0.00016017,2]
[405845007,1771356656776,-166.11141928,0.00016028,2]
[405845008,1771356656785,-1000.0,0.00016036,2]
[405845009,1771356656795,-996.7,0.00016042,2]
[405845010,1771356656805,-2052.7,0.00016042,2]
[405845011,1771356656815,-1000.0,0.00016054,2]
[405845012,1771356656824,-2500.0,0.00016064,2]
[405845013,1771356656834,-1787.66016397,0.00016064,2]
[405845014,1771356656844,-960.3517219,0.00016064,2]
[405845015,1771356656854,-1007.7222609,0.00016064,2]
[405845016,1771356656863,-2500.0,0.00016064,2]
[405845017,1771356656873,-1510.33829166,0.00016064,2]
[405845018,1771356657045,-1000.0,0.00016075,2]
[405845019,1771356657083,-2000.0,0.00016082,2]
[405845020,1771356657093,-1000.0,0.00016083,2]
[405845021,1771356657103,-9999.99,0.00016116,2]
[405845022,1771356657114,-997.0,0.00016121,2]
[405845023,1771356657124,-997.0,0.00016125,2]
[405845024,1771356657133,-1000.0,0.00016192,2]
[405845025,1771356657143,-150.0,0.000162,2]
[405845026,1771356657153,-5000.00387893,0.000162,5]
[405845027,1771356657164,-1000.0,0.00016207,2]
[405845028,1771356657173,-666.0,0.00016227,2]
[405845029,1771356657185,-150.0,0.00016234,2]
[405845030,1771356657195,-997.0,0.00016247,2]
[405845031,1771356657206,-1000.0,0.00016263,7]
[405845032,1771356657215,-150.0,0.00016265,2]
[405845033,1771356657225,-997.0,0.00016271,2]
[405845034,1771356657237,-1000.0,0.00016289,2]
[405845035,1771356657248,-1000.0,0.00016303,2]
[405845036,1771356657258,-997.0,0.00016304,2]
[405845037,1771356657268,-997.0,0.0001631,2]
[405845038,1771356657279,-200.0,0.0001634,2]
[405845039,1771356657288,-500.0,0.00016356,2]
[405845040,1771356657298,-500.0,0.00016356,2]
[405845041,1771356657309,-1000.0,0.00016361,2]
[405845042,1771356657319,-1000.0,0.00016363,2]
[405845043,1771356657328,-150.0,0.00016396,2]
[405845044,1771356657341,-150.0,0.00016399,2]
[405845045,1771356657350,-2789.9,0.00016438,2]
[405845046,1771356657360,-382.0,0.00016438,2]
[405845047,1771356657372,-887.51,0.00016438,2]
[405845048,1771356657382,-4479.21,0.00016438,2]
[405845049,1771356657392,-900.0,0.00016438,2]
[405845050,1771356657404,-151.02975848,0.00016438,2]
[405845051,1771356657416,-151.0,0.00016438,2]
[405845052,1771356657426,-151.0,0.00016438,2]
[405845053,1771356657438,-151.0,0.00016438,2]
[405845054,1771356657448,-151.0,0.00016438,2]
[405845055,1771356657459,-151.0,0.00016438,2]
[405845056,1771356657468,-151.0,0.00016438,2]
[405845057,1771356657479,-158.396759,0.00016438,2]
[405845058,1771356657490,-151.0,0.00016438,2]
[405845059,1771356657500,-151.0,0.00016438,2]
[405845060,1771356657510,-151.0,0.00016438,2]
[405845061,1771356657519,-151.0,0.00016438,2]
[405845062,1771356657529,-151.0,0.00016438,2]
[405845063,1771356657539,-151.0,0.00016438,2]
[405845064,1771356657549,-276.993442,0.00016438,2]
[405845065,1771356657560,-276.993442,0.00016438,2]
[405845066,1771356657569,-276.993442,0.00016438,2]
[405845067,1771356657579,-276.993442,0.00016438,2]
[405845068,1771356657589,-276.993442,0.00016438,2]
[405845069,1771356657598,-276.993442,0.00016438,2]
[405845070,1771356657608,-276.993442,0.00016438,2]
[405845071,1771356657618,-276.993442,0.00016438,2]
[405845072,1771356657627,-276.993442,0.00016438,2]
[405845073,1771356657637,-276.993442,0.00016438,2]
[405845074,1771356657647,-276.993442,0.00016438,2]
[405845075,1771356657657,-276.993442,0.00016438,2]
[405845076,1771356657667,-2628.5807203,0.00016444,2]
[405845077,1771356657677,-3328.9925445,0.00016444,2]
[405845078,1771356657686,-150.0,0.00016455,2]
[405845079,1771356657696,-150.0,0.00016457,2]
[405845080,1771356657706,-1000.0,0.00016482,2]
[405845081,1771356657717,-449196.14503807,0.00016483,2]
[405845082,1771356658811,-154.86539372,8.219e-05,2]
[405845083,1771356658821,-150.0,8.219e-05,2]
[405845084,1771356658831,-150.0,8.219e-05,2]
[405845085,1771356658841,-150.0,8.274e-05,2]
[405845086,1771356658851,-150.0,8.329e-05,2]
[405845087,1771356658860,-427.0,9.37e-05,2]
[405845088,1771356658870,-427.0,9.424e-05,2]
[405845089,1771356658881,-5384.473729,0.0001026,2]
[405845090,1771356658891,-239.8459294,0.00012173,2]
[405845091,1771356658902,-12563.772035,0.0001368,2]
[405845092,1771356658911,-1123.4234712,0.00016483,2]
[405845094,1771356742550,3542.04,6.899e-05,2]
[405845095,1771356742575,10000.01,6.899e-05,2]
[405845096,1771356742599,10000.01,6.899e-05,2]
[405845097,1771356742626,10000.01,6.899e-05,2]
[405845098,1771356742650,10000.01,6.899e-05,2]
[405845099,1771356742674,10000.01,6.899e-05,2]
[405845100,1771356742697,10000.01,6.899e-05,2]
[405845101,1771356742724,10000.01,6.899e-05,2]
[405845102,1771356791739,-900.0,6.7e-05,2]
[405845103,1771356806811,-1900.0,6.8e-05,2]
[405845104,1771356859775,7100.0,6.7e-05,2]
[405845105,1771356861887,2900.01,6.8e-05,2]
[405845106,1771356861938,10000.01,6.8e-05,2]
[405845107,1771356861978,1299.98,6.8e-05,2]
[405845108,1771356909690,205.1,6.8e-05,2]
[405845109,1771357063634,8494.93,6.799e-05,2]
[405845110,1771357063659,10000.01,6.799e-05,2]
[405845111,1771357063682,10000.01,6.799e-05,2]
[405845112,1771357063706,10000.01,6.799e-05,2]
[405845113,1771357063729,10000.01,6.799e-05,2]
[405845114,1771357063752,10000.01,6.799e-05,2]
[405845115,1771357063774,10000.01,6.799e-05,2]
[405845116,1771357063796,10000.01,6.799e-05,2]
[405845117,1771357063818,10000.01,6.799e-05,2]
[405845118,1771357063841,10000.01,6.799e-05,2]
[405845119,1771357081662,-300.0,6.798e-05,2]
[405845120,1771357081942,2600.0,6.7e-05,2]
[405845121,1771357112030,151.0,6.796e-05,2]
[405845122,1771357112340,500.0,6.798e-05,2]
[405845123,1771357112369,500.0,6.798e-05,2]
[405845124,1771357112399,377.31851686,6.798e-05,2]
[405845125,1771357112704,151.0,6.796e-05,2]
[405845126,1771357113115,151.0,6.796e-05,2]
[405845127,1771357119778,500.0,6.798e-05,2]
[405845128,1771357119814,500.0,6.798e-05,2]
[405845129,1771357141293,300.0,6.798e-05,2]
[405845130,1771357142781,300.0,6.798e-05,2]
[405845131,1771357143021,150.0,6.798e-05,2]
[405845132,1771357158113,500.0,6.798e-05,2]
[405845133,1771357158241,500.0,6.798e-05,2]
[405845134,1771357158281,500.0,6.798e-05,2]
[405845135,1771357158322,500.0,6.798e-05,2]
[405845136,1771357158361,500.0,6.798e-05,2]
[405845137,1771357158404,500.0,6.798e-05,2]
[405845138,1771357158446,219.69148314,6.798e-05,2]
[405845139,1771357158471,280.30851686,6.798e-05,2]
[405845140,1771357158515,500.0,6.798e-05,2]
[405845141,1771357158604,500.0,6.798e-05,2]
[405845142,1771357158714,500.0,6.798e-05,2]
[405845143,1771357158789,500.0,6.798e-05,2]
[405845144,1771357158945,500.0,6.798e-05,2]
[405845145,1771357159032,500.0,6.798e-05,2]
[405845146,1771357159078,500.0,6.798e-05,2]
[405845147,1771357159163,500.0,6.798e-05,2]
[405845148,1771357159389,500.0,6.798e-05,2]
[405845149,1771357159442,500.0,6.798e-05,2]
[405845150,1771357159487,500.0,6.798e-05,2]
[405845151,1771357159530,500.0,6.798e-05,2]
[405845152,1771357159584,500.0,6.798e-05,2]
[405845153,1771357159622,500.0,6.798e-05,2]
[405845154,1771357159664,500.0,6.798e-05,2]
[405845155,1771357159698,500.0,6.798e-05,2]
[405845156,1771357159738,500.0,6.798e-05,2]
[405845157,1771357159779,500.0,6.798e-05,2]
[405845158,1771357159837,280.18109023,6.798e-05,2]
[405845159,1771357159898,439.52039291,6.798e-05,2]
[405845160,1771357302342,-3537.279,6.663e-05,2]
[405845161,1771357302552,-2925.452,6.663e-05,2]
[405845162,1771357302582,-622.496,6.663e-05,2]
[405845163,1771357303222,187.39,5.445e-05,2]
[405845181,1771357426121,900.0,6.6e-05,2]
[405845182,1771357433345,500.0,6.565e-05,2]
[405845184,1771357458772,259.01,6.538e-05,2]
[405845192,1771357645519,-6992.0554832,6.6e-05,2]
[405845193,1771357645556,-3707.9445168,6.6e-05,2]
[405845194,1771357673882,2584.1209664,6.38e-05,2]
[405845195,1771357673905,10000.01,6.38e-05,2]
[405845196,1771357673928,10000.01,6.38e-05,2]
[405845197,1771357673951,1163.3490336,6.38e-05,2]
[405845198,1771357681403,2346.94113067,6.5e-05,3]
[405845199,1771357681475,3994.64697867,6.5e-05,3]
[405845200,1771357681784,2495.07285706,6.5e-05,3]
[405845201,1771357681806,840.49178241,6.5e-05,3]
[405845202,1771357681837,3665.10580907,6.5e-05,3]
[405845235,1771357809209,738.07,5.392e-05,2]
[405845236,1771357809441,738.07,5.442e-05,2]
[405845237,1771357809676,738.07,5.492e-05,2]
[405845238,1771357809910,738.07,5.542e-05,2]
[405845239,1771357810440,738.07,5.592e-05,2]
[405845240,1771357810740,738.07,5.642e-05,2]
[405845241,1771357810979,738.07,5.692e-05,2]
[405845242,1771357811236,327.92240852,5.742e-05,2]
[405845243,1771357811259,410.14759148,5.742e-05,2]
[405845244,1771357811454,738.07,5.792e-05,2]
[405845245,1771357811653,738.07,5.842e-05,2]
[405845246,1771357811849,738.07,5.893e-05,2]
[405845247,1771357812084,738.07,5.943e-05,2]
[405845248,1771357813267,738.07,5.993e-05,2]
[405845249,1771357813315,738.07,6.043e-05,2]
[405845250,1771357813390,738.07,6.093e-05,2]
[405845251,1771357813446,738.07,6.143e-05,2]
[405845252,1771357813542,738.07,6.193e-05,2]
[405845253,1771357813639,738.07,6.243e-05,2]
[405845254,1771357813701,738.07,6.293e-05,2]
[405845255,1771357813914,738.07,6.343e-05,2]
[405845259,1771357831325,-2204.0,6.658e-05,2]
[405845260,1771357831335,-300.0,6.696e-05,2]
[405845261,1771357831344,-150.0,6.696e-05,2]
[405845262,1771357831354,-1200.0,6.696e-05,2]
[405845263,1771357831364,-27.78321118,6.696e-05,2]
[405845264,1771357831377,-222.21678882,6.696e-05,2]
[405845265,1771357831387,-403.52418014,6.697e-05,2]
[405845266,1771357831420,-596.47581986,6.697e-05,2]
[405845267,1771357831430,-151.07618014,6.697e-05,2]
[405845268,1771357831442,-348.92381986,6.697e-05,2]
[405845269,1771357831451,-500.0,6.697e-05,2]
[405845270,1771357831460,-351.31401612,6.697e-05,2]
[405845273,1771357831815,-148.68598388,6.697e-05,2]
[405845274,1771357831849,-500.0,6.697e-05,2]
[405845275,1771357831858,-500.0,6.697e-05,2]
[405845276,1771357831869,-218.88401612,6.697e-05,2]
[405845277,1771357831887,-281.11598388,6.697e-05,2]
[405845278,1771357831897,-500.0,6.697e-05,2]
[405845279,1771357831906,-500.0,6.697e-05,2]
[405845280,1771357831919,-500.0,6.697e-05,2]
[405845281,1771357831928,-500.0,6.697e-05,2]
[405845282,1771357831938,-500.0,6.697e-05,2]
[405845283,1771357831947,-500.0,6.697e-05,2]
[405845284,1771357831957,-500.0,6.697e-05,2]
[405845285,1771357831966,-500.0,6.697e-05,2]
[405845286,1771357831975,-500.0,6.697e-05,2]
[405845287,1771357831985,-500.0,6.697e-05,2]
[405845288,1771357831994,-500.0,6.697e-05,2]
[405845289,1771357832003,-500.0,6.697e-05,2]
[405845290,1771357832013,-500.0,6.697e-05,2]
[405845291,1771357832022,-500.0,6.697e-05,2]
[405845292,1771357832032,-500.0,6.697e-05,2]
[405845293,1771357832041,-500.0,6.697e-05,2]
[405845294,1771357832051,-500.0,6.697e-05,2]
[405845295,1771357832060,-500.0,6.697e-05,2]
[405845296,1771357832069,-500.0,6.697e-05,2]
[405845297,1771357832080,-500.0,6.697e-05,2]
[405845298,1771357832089,-500.0,6.697e-05,2]
[405845299,1771357832098,-382.4497554,6.697e-05,2]
[405845300,1771357832107,-500.0,6.697e-05,2]
[405845301,1771357832117,-500.0,6.697e-05,2]
[405845302,1771357832126,-500.0,6.697e-05,2]
[405845303,1771357832135,-500.0,6.697e-05,2]
[405845304,1771357832144,-7.47121939,6.697e-05,2]
[405845306,1771357832183,-492.52878061,6.697e-05,2]
[405845307,1771357832193,-500.0,6.697e-05,2]
[405845308,1771357832202,-500.0,6.697e-05,2]
[405845309,1771357832211,-500.0,6.697e-05,2]
[405845310,1771357832221,-500.0,6.697e-05,2]
[405845311,1771357832230,-500.0,6.697e-05,2]
[405845312,1771357832239,-500.0,6.697e-05,2]
[405845313,1771357832248,-500.0,6.697e-05,2]
[405845314,1771357832258,-500.0,6.697e-05,2]
[405845315,1771357832267,-500.0,6.697e-05,2]
[405845316,1771357832276,-500.0,6.697e-05,2]
[405845317,1771357832286,-500.0,6.697e-05,2]
[405845318,1771357832295,-500.0,6.697e-05,2]
[405845319,1771357832305,-500.0,6.697e-05,2]
[405845320,1771357832314,-500.0,6.697e-05,2]
[405845321,1771357832324,-500.0,6.697e-05,2]
[405845322,1771357832333,-500.0,6.697e-05,2]
[405845323,1771357832342,-500.0,6.697e-05,2]
[405845324,1771357832350,-500.0,6.697e-05,2]
[405845325,1771357832359,-500.0,6.697e-05,2]
[405845326,1771357832368,-500.0,6.697e-05,2]
[405845327,1771357832377,-500.0,6.697e-05,2]
[405845328,1771357832386,-500.0,6.697e-05,2]
[405845329,1771357832396,-500.0,6.697e-05,2]
[405845330,1771357832405,-500.0,6.697e-05,2]
[405845331,1771357832415,-500.0,6.697e-05,2]
[405845332,1771357832424,-500.0,6.697e-05,2]
[405845333,1771357832434,-500.0,6.697e-05,2]
[405845334,1771357832443,-500.0,6.697e-05,2]
[405845335,1771357832453,-400.0,6.697e-05,2]
[405845336,1771357832463,-500.0,6.697e-05,2]
[405845337,1771357832472,-500.0,6.697e-05,2]
[405845338,1771357832482,-500.0,6.697e-05,2]
[405845339,1771357832491,-500.0,6.697e-05,2]
[405845340,1771357832500,-500.0,6.697e-05,2]
[405845341,1771357832509,-500.0,6.697e-05,2]
[405845342,1771357832518,-500.0,6.697e-05,2]
[405845343,1771357832527,-500.0,6.697e-05,2]
[405845344,1771357832537,-250.0,6.698e-05,2]
[405845345,1771357832546,-331550.96814912,6.698e-05,2]
[405845346,1771357832559,-3161.92640478,6.698e-05,2]
[405845347,1771357832570,-111612.92080324,6.698e-05,2]
[405845349,1771357837609,-3053674.18464286,6.698e-05,2]
[405845350,1771357837619,-337.9226747,6.699e-05,2]
[405845351,1771357837629,-185.29568936,6.699e-05,2]
[405845352,1771357837639,-1560.4129054,6.699e-05,2]
[405845353,1771357837648,-8640.54324283,6.699e-05,2]
[405845354,1771357837661,-21500.0,6.7e-05,2]
[405845355,1771357837673,-1067.06589275,6.798e-05,2]
[405845356,1771357837684,-919.73,6.798e-05,2]
[405845357,1771357837695,-1121.43775548,6.798e-05,2]
[405845358,1771357837707,-999.99,6.798e-05,2]
[405845359,1771357837717,-5914.98,6.798e-05,2]
[405845361,1771357837728,-7136.18,6.798e-05,2]
[405845363,1771357837741,-311.55,6.8e-05,2]
[405845364,1771357837752,-2984.7,6.8e-05,2]
[405845365,1771357837761,-150.99,6.8e-05,2]
[405845366,1771357837771,-761.78,6.8e-05,2]
[405845367,1771357837780,-499.99,6.8e-05,2]
[405845368,1771357837789,-9999.99,6.8e-05,2]
[405845369,1771357837799,-9999.99,6.8e-05,2]
[405845370,1771357837809,-9999.99,6.8e-05,2]
[405845371,1771357837819,-1184.93,6.8e-05,2]
[405845372,1771357837827,-515.68,6.8e-05,2]
[405845373,1771357837836,-1542.1,6.8e-05,2]
[405845374,1771357837846,-32300.0,6.8e-05,2]
[405845375,1771357837855,-933.51,6.86e-05,2]
[405845376,1771357837864,-335.99561851,6.876e-05,2]
[405845377,1771357837874,-1473.32,6.877e-05,2]
[405845378,1771357837884,-9999.99,6.877e-05,2]
[405845379,1771357837894,-9999.99,6.877e-05,2]
[405845381,1771357837904,-3706.48,6.877e-05,2]
[405845382,1771357837914,-29124.47,6.877e-05,2]
[405845383,1771357837923,-14037.81,6.877e-05,2]
[405845384,1771357837933,-9999.99,6.877e-05,2]
[405845385,1771357837943,-311.5,6.877e-05,2]
[405845386,1771357837952,-81423.96,6.877e-05,2]
[405845387,1771357837962,-4999.99,6.877e-05,2]
[405845388,1771357837971,-2106.28,6.877e-05,2]
[405845389,1771357837980,-179478.12,6.877e-05,2]
[405845390,1771357837989,-299.99,6.877e-05,2]
[405845391,1771357837998,-14638.92,6.877e-05,2]
[405845392,1771357838007,-150.99,6.877e-05,2]
[405845393,1771357838017,-1471.46208079,6.898e-05,2]
[405845394,1771357838026,-43000.0,6.9e-05,2]
[405845395,1771357838035,-53800.0,7e-05,2]
[405845396,1771357838044,-919.73,7.072e-05,2]
[405845397,1771357838054,-315.0,7.114e-05,2]
[405845398,1771357838063,-227.0,7.128e-05,2]
[405845399,1771357838073,-241.0,7.143e-05,2]
[405845400,1771357838082,-314.0,7.157e-05,2]
[405845401,1771357838091,-482.0,7.171e-05,2]
[405845402,1771357838100,-336.0,7.179e-05,2]
[405845403,1771357838109,-324.0,7.185e-05,2]
[405845404,1771357838119,-724.0,7.194e-05,2]
[405845405,1771357838128,-1079.0,7.208e-05,2]
[405845406,1771357838137,-1148.0,7.222e-05,2]
[405845407,1771357838146,-1391.0,7.237e-05,2]
[405845408,1771357838156,-619.0,7.251e-05,2]
[405845409,1771357838165,-193.0,7.323e-05,2]
[405845410,1771357838174,-919.73,7.346e-05,2]
[405845411,1771357838184,-420.0,7.365e-05,2]
[405845412,1771357838193,-255.0,7.365e-05,2]
[405845413,1771357838202,-1680.0,7.365e-05,2]
[405845414,1771357838212,-250.0,7.366e-05,2]
[405845415,1771357838221,-200.0,7.415e-05,2]
[405845416,1771357838231,-919.73,7.62e-05,2]
[405845417,1771357838240,-23454.9,7.671e-05,2]
[405845418,1771357838249,-1715.0,7.691e-05,2]
[405845419,1771357838258,-466.0,7.705e-05,2]
[405845420,1771357838268,-331.0,7.707e-05,2]
[405845421,1771357838277,-318.0,7.721e-05,2]
[405845422,1771357838287,-425.0,7.884e-05,2]
[405845423,1771357838297,-919.73,7.894e-05,2]
[405845424,1771357838306,-167.0,7.899e-05,2]
[405845425,1771357838317,-383.0,7.915e-05,2]
[405845426,1771357838326,-247.0,7.931e-05,2]
[405845427,1771357838336,-37943.359931,7.945e-05,2]
[405845428,1771357838346,-481.0,7.947e-05,2]
[405845429,1771357838355,-262.0,7.962e-05,2]
[405845430,1771357838365,-500.0,8e-05,2]
[405845431,1771357838374,-393.01462109,8e-05,2]
[405845432,1771357838384,-587.0,8.102e-05,2]
[405845433,1771357838393,-433.0,8.102e-05,2]
[405845434,1771357838402,-2351.0,8.102e-05,2]
[405845435,1771357838412,-919.73,8.168e-05,2]
[405845436,1771357838421,-1285.1,8.178e-05,2]
[405845437,1771357838431,-2752.36,8.213e-05,2]
[405845438,1771357838441,-238.628183,8.219e-05,2]
[405845439,1771357838450,-500.0,8.219e-05,2]
[405845440,1771357838459,-1000.0,8.219e-05,2]
[405845441,1771357838468,-919.73,8.442e-05,2]
[405845442,1771357838477,-500.0,8.493e-05,2]
[405845443,1771357838487,-919.73,8.716e-05,2]
[405845444,1771357838496,-500.0,8.767e-05,2]
[405845445,1771357838505,-298.285229,8.784e-05,2]
[405845446,1771357838515,-250.0,8.797e-05,2]
[405845447,1771357838524,-298.71,8.824e-05,2]
[405845448,1771357838534,-215.37,8.828e-05,2]
[405845449,1771357838543,-823.0,8.912e-05,2]
[405845450,1771357838553,-736.0,8.912e-05,2]
[405845451,1771357838563,-3292.0,8.912e-05,2]
[405845452,1771357838572,-919.73,8.99e-05,2]
[405845453,1771357838581,-500.0,9.041e-05,2]
[405845454,1771357838591,-500.0,9.15e-05,2]
[405845455,1771357838600,-500.0,9.15e-05,2]
[405845456,1771357838610,-500.0,9.15e-05,2]
[405845457,1771357838619,-150.0,9.15e-05,2]
[405845458,1771357838629,-500.0,9.15e-05,2]
[405845459,1771357838639,-500.0,9.15e-05,2]
[405845460,1771357838648,-500.0,9.15e-05,2]
[405845461,1771357838658,-150.31509327,9.15e-05,2]
[405845462,1771357838671,-500.0,9.15e-05,2]
[405845463,1771357838681,-500.0,9.15e-05,2]
[405845464,1771357838693,-596.0,9.15e-05,2]
[405845465,1771357838703,-150.0,9.15e-05,2]
[405845466,1771357838712,-500.0,9.15e-05,2]
[405845467,1771357838721,-150.0,9.15e-05,2]
[405845468,1771357838731,-500.0,9.15e-05,2]
[405845469,1771357838740,-500.0,9.15e-05,2]
[405845470,1771357838750,-500.0,9.15e-05,2]
[405845471,1771357838759,-150.0,9.15e-05,2]
[405845472,1771357838768,-500.0,9.15e-05,2]
[405845473,1771357838777,-150.0,9.15e-05,2]
[405845474,1771357838787,-500.0,9.15e-05,2]
[405845475,1771357838796,-500.0,9.15e-05,2]
[405845476,1771357838806,-150.0,9.15e-05,2]
[405845477,1771357838816,-150.0,9.15e-05,2]
[405845478,1771357838825,-150.0,9.15e-05,2]
[405845479,1771357838834,-150.0,9.15e-05,2]
[405845480,1771357838843,-150.0,9.15e-05,2]
[405845481,1771357838853,-500.0,9.15e-05,2]
[405845482,1771357838863,-500.0,9.15e-05,2]
[405845483,1771357838873,-500.0,9.15e-05,2]
[405845484,1771357838882,-150.0,9.15e-05,2]
[405845485,1771357838892,-150.0,9.15e-05,2]
[405845486,1771357838903,-500.0,9.15e-05,2]
[405845487,1771357838912,-500.0,9.15e-05,2]
[405845488,1771357838922,-500.0,9.15e-05,2]
[405845489,1771357838931,-150.0,9.15e-05,2]
[405845490,1771357838940,-500.0,9.15e-05,2]
[405845491,1771357838949,-150.0,9.15e-05,2]
[405845492,1771357838959,-500.0,9.15e-05,2]
[405845493,1771357838968,-500.0,9.205e-05,2]
[405845494,1771357838978,-500.0,9.205e-05,2]
[405845495,1771357838987,-500.0,9.205e-05,2]
[405845496,1771357838997,-150.0,9.205e-05,2]
[405845497,1771357839007,-502.16866536,9.205e-05,2]
[405845498,1771357839017,-500.0,9.205e-05,2]
[405845499,1771357839026,-500.0,9.205e-05,2]
[405845500,1771357839036,-500.0,9.205e-05,2]
[405845501,1771357839045,-500.0,9.205e-05,2]
[405845502,1771357839054,-596.0,9.205e-05,2]
[405845503,1771357839064,-150.0,9.205e-05,2]
[405845504,1771357839073,-500.0,9.205e-05,2]
[405845505,1771357839083,-150.0,9.205e-05,2]
[405845506,1771357839092,-500.0,9.205e-05,2]
[405845507,1771357839101,-500.87477363,9.205e-05,2]
[405845508,1771357839112,-500.0,9.205e-05,2]
[405845509,1771357839122,-150.0,9.205e-05,2]
[405845510,1771357839132,-500.0,9.205e-05,2]
[405845511,1771357839142,-150.0,9.205e-05,2]
[405845512,1771357839151,-500.0,9.205e-05,2]
[405845513,1771357839160,-500.0,9.205e-05,2]
[405845514,1771357839170,-244.28993987,9.205e-05,2]
[405845515,1771357839179,-150.0,9.205e-05,2]
[405845516,1771357839188,-150.0,9.205e-05,2]
[405845517,1771357839197,-150.0,9.205e-05,2]
[405845518,1771357839207,-151.2254874,9.205e-05,2]
[405845519,1771357839216,-500.0,9.205e-05,2]
[405845520,1771357839226,-500.0,9.205e-05,2]
[405845521,1771357839235,-500.0,9.205e-05,2]
[405845523,1771357839245,-150.07216309,9.205e-05,2]
[405845525,1771357839254,-500.0,9.205e-05,2]
[405845526,1771357839263,-500.0,9.205e-05,2]
[405845527,1771357839272,-500.0,9.205e-05,2]
[405845528,1771357839282,-500.0,9.205e-05,2]
[405845529,1771357839291,-150.0,9.205e-05,2]
[405845530,1771357839300,-500.0,9.205e-05,2]
[405845531,1771357839309,-1000.0,9.247e-05,2]
[405845532,1771357839319,-500.0,9.26e-05,2]
[405845533,1771357839329,-500.0,9.26e-05,2]
[405845534,1771357839338,-537.36614029,9.26e-05,2]
[405845535,1771357839347,-200.0,9.26e-05,2]
[405845536,1771357839357,-500.0,9.26e-05,2]
[405845537,1771357839366,-500.0,9.26e-05,2]
[405845538,1771357839375,-500.0,9.26e-05,2]
[405845539,1771357839385,-616.5683879,9.26e-05,2]
[405845540,1771357839394,-596.0,9.26e-05,2]
[405845541,1771357839404,-201.09695119,9.26e-05,2]
[405845542,1771357839413,-500.0,9.26e-05,2]
[405845543,1771357839423,-150.0,9.26e-05,2]
[405845544,1771357839432,-500.0,9.26e-05,2]
[405845545,1771357839441,-500.0,9.26e-05,2]
[405845546,1771357839450,-242.84628954,9.26e-05,2]
[405845547,1771357839459,-500.0,9.26e-05,2]
[405845548,1771357839469,-150.0,9.26e-05,2]
[405845549,1771357839478,-152.12850518,9.26e-05,2]
[405845550,1771357839488,-500.0,9.26e-05,2]
[405845551,1771357839497,-200.36674187,9.26e-05,2]
[405845554,1771357839507,-150.0,9.26e-05,2]
[405845555,1771357839516,-200.18645604,9.26e-05,2]
[405845557,1771357839526,-500.0,9.26e-05,2]
[405845558,1771357839536,-500.0,9.26e-05,2]
[405845559,1771357839547,-500.0,9.26e-05,2]
[405845560,1771357839556,-500.0,9.26e-05,2]
[405845561,1771357839567,-537.18600864,9.26e-05,2]
[405845562,1771357839577,-500.0,9.26e-05,2]
[405845563,1771357839587,-500.0,9.26e-05,2]
[405845564,1771357839596,-200.0,9.26e-05,2]
[405845565,1771357839606,-500.0,9.26e-05,2]
[405845566,1771357839616,-919.73,9.264e-05,2]
[405845567,1771357839626,-500.0,9.314e-05,2]
[405845568,1771357839635,-500.0,9.314e-05,2]
[405845569,1771357839645,-500.0,9.314e-05,2]
[405845570,1771357839654,-500.0,9.314e-05,2]
[405845571,1771357839666,-500.0,9.314e-05,2]
[405845572,1771357839676,-596.0,9.314e-05,2]
[405845573,1771357839686,-500.0,9.314e-05,2]
[405845574,1771357839696,-250.53819001,9.314e-05,2]
[405845575,1771357839707,-500.0,9.314e-05,2]
[405845576,1771357839716,-500.0,9.314e-05,2]
[405845577,1771357839726,-500.0,9.314e-05,2]